[Event "Late-Titled-Tuesday-Blitz-May-14-2024"]
[Site "Chess.com"]
[Date "2024.05.14"]
[Round "5"]
[White "Mbneu"]
[Black "GrotBchess"]
[Result "0-1"]
[WhiteElo "2255"]
[BlackElo "2552"]
[TimeControl "180+1"]
[EndTime "14:55:33 PDT"]
[Termination "GrotBchess won by resignation"]

1. d4 {[%clk 0:02:55.4]} 1... Nf6 {[%clk 0:02:57.9]} 2. c4 {[%clk 0:02:55.8]}
2... e6 {[%clk 0:02:56.2]} 3. Nc3 {[%clk 0:02:55.9]} 3... Bb4 {[%clk 0:02:55.9]}
4. Bg5 {[%clk 0:02:56.3]} 4... O-O {[%clk 0:02:53.9]} 5. e3 {[%clk 0:02:55]}
5... h6 {[%clk 0:02:52.1]} 6. Bh4 {[%clk 0:02:53.8]} 6... c5 {[%clk 0:02:52.2]}
7. d5 {[%clk 0:02:53]} 7... exd5 {[%clk 0:02:51.9]} 8. cxd5 {[%clk 0:02:53.9]}
8... d6 {[%clk 0:02:49.8]} 9. Bd3 {[%clk 0:02:52.5]} 9... Re8 {[%clk 0:02:48.3]}
10. Ne2 {[%clk 0:02:51.3]} 10... Nbd7 {[%clk 0:02:47.4]} 11. O-O {[%clk
0:02:49.9]} 11... Ne5 {[%clk 0:02:47]} 12. Ne4 {[%clk 0:02:46.2]} 12... g5
{[%clk 0:02:40.6]} 13. Nxf6+ {[%clk 0:02:43.4]} 13... Qxf6 {[%clk 0:02:39.4]}
14. Bg3 {[%clk 0:02:33.5]} 14... Nxd3 {[%clk 0:02:39]} 15. Qxd3 {[%clk 0:02:32]}
15... Bf5 {[%clk 0:02:38.6]} 16. Qb3 {[%clk 0:02:24.4]} 16... a5 {[%clk
0:02:19.4]} 17. a3 {[%clk 0:02:00.7]} 17... a4 {[%clk 0:02:17.4]} 18. Qd1 {[%clk
0:01:51.5]} 18... Ba5 {[%clk 0:02:16.8]} 19. Qc1 {[%clk 0:01:35.5]} 19... Bc7
{[%clk 0:02:13.2]} 20. Nc3 {[%clk 0:01:33.1]} 20... Ra6 {[%clk 0:01:57.2]} 21.
f3 {[%clk 0:01:30]} 21... Bd3 {[%clk 0:01:42]} 22. Re1 {[%clk 0:01:25]} 22... c4
{[%clk 0:01:41.5]} 23. e4 {[%clk 0:01:17.2]} 23... Bb6+ {[%clk 0:01:41.4]} 24.
Kh1 {[%clk 0:01:16.7]} 24... Bd4 {[%clk 0:01:40.8]} 25. Ra2 {[%clk 0:00:58.6]}
25... h5 {[%clk 0:01:31.7]} 26. Nb5 {[%clk 0:00:55.5]} 26... Bc5 {[%clk
0:01:04.5]} 27. Nc7 {[%clk 0:00:35]} 27... Re7 {[%clk 0:00:59.1]} 28. Nxa6
{[%clk 0:00:31.8]} 28... bxa6 {[%clk 0:01:00]} 29. e5 {[%clk 0:00:17.2]} 29...
dxe5 {[%clk 0:00:52.5]} 30. Qc3 {[%clk 0:00:16.3]} 30... Bd4 {[%clk 0:00:47.9]}
31. Qb4 {[%clk 0:00:16.1]} 31... h4 {[%clk 0:00:44.5]} 32. d6 {[%clk 0:00:15.8]}
32... Rd7 {[%clk 0:00:41.4]} 33. Bxe5 {[%clk 0:00:13.3]} 33... Bxe5 {[%clk
0:00:41]} 34. Qb8+ {[%clk 0:00:10.1]} 34... Rd8 {[%clk 0:00:40.9]} 35. Qc7
{[%clk 0:00:09.2]} 35... Bxd6 {[%clk 0:00:38.1]} 36. Qc6 {[%clk 0:00:09.3]}
36... Qf4 {[%clk 0:00:36.7]} 37. Re8+ {[%clk 0:00:04.7]} 37... Rxe8 {[%clk
0:00:33.5]} 38. Qxe8+ {[%clk 0:00:05.1]} 38... Kg7 {[%clk 0:00:33.5]} 0-1

[Event "Late-Titled-Tuesday-Blitz-May-14-2024"]
[Site "Chess.com"]
[Date "2024.05.14"]
[Round "5"]
[White "HandKnit"]
[Black "Flaccidmoves"]
[Result "1-0"]
[WhiteElo "2504"]
[BlackElo "2432"]
[TimeControl "180+1"]
[EndTime "14:55:33 PDT"]
[Termination "HandKnit won by resignation"]

1. c4 {[%clk 0:03:00.9]} 1... b6 {[%clk 0:02:59]} 2. Nc3 {[%clk 0:02:59.8]} 2...
Bb7 {[%clk 0:02:59.3]} 3. e4 {[%clk 0:03:00.4]} 3... e5 {[%clk 0:02:57.2]} 4.
Nge2 {[%clk 0:02:57.2]} 4... Nc6 {[%clk 0:02:54.8]} 5. g3 {[%clk 0:02:55.9]}
5... Bc5 {[%clk 0:02:51.5]} 6. Bg2 {[%clk 0:02:55.5]} 6... Nf6 {[%clk
0:02:46.2]} 7. O-O {[%clk 0:02:55]} 7... O-O {[%clk 0:02:45]} 8. d3 {[%clk
0:02:53.3]} 8... h6 {[%clk 0:02:31.3]} 9. h3 {[%clk 0:02:51.7]} 9... Nd4 {[%clk
0:02:22.6]} 10. Kh2 {[%clk 0:02:49.7]} 10... Re8 {[%clk 0:02:04.6]} 11. Nxd4
{[%clk 0:02:48.9]} 11... Bxd4 {[%clk 0:01:59.1]} 12. Bd2 {[%clk 0:02:43.9]}
12... Nh7 {[%clk 0:01:42]} 13. b4 {[%clk 0:02:40]} 13... a5 {[%clk 0:01:38.4]}
14. a3 {[%clk 0:02:36.7]} 14... axb4 {[%clk 0:01:31.4]} 15. axb4 {[%clk
0:02:37.6]} 15... Rxa1 {[%clk 0:01:31.5]} 16. Qxa1 {[%clk 0:02:37.4]} 16... Qa8
{[%clk 0:01:19.7]} 17. Qb2 {[%clk 0:02:36.2]} 17... c6 {[%clk 0:01:15.3]} 18.
Ra1 {[%clk 0:02:29.6]} 18... Qb8 {[%clk 0:01:15.9]} 19. Be1 {[%clk 0:02:12.6]}
19... d5 {[%clk 0:01:08.5]} 20. cxd5 {[%clk 0:02:05.7]} 20... cxd5 {[%clk
0:01:08.1]} 21. exd5 {[%clk 0:02:06.2]} 21... Nf6 {[%clk 0:01:02.7]} 22. Qb3
{[%clk 0:01:57.9]} 22... Rd8 {[%clk 0:00:58.6]} 23. Ra3 {[%clk 0:01:44.5]} 23...
Bxc3 {[%clk 0:00:54.9]} 24. Bxc3 {[%clk 0:01:45.4]} 24... Bxd5 {[%clk
0:00:49.6]} 25. Bxd5 {[%clk 0:01:23.7]} 25... Nxd5 {[%clk 0:00:49.3]} 26. Qb2
{[%clk 0:01:20.2]} 26... Nxc3 {[%clk 0:00:47.1]} 27. Qxc3 {[%clk 0:01:21.1]}
27... Qd6 {[%clk 0:00:44.8]} 28. Qc4 {[%clk 0:01:15.1]} 28... Qd5 {[%clk
0:00:38.6]} 29. Qc7 {[%clk 0:01:11.1]} 29... b5 {[%clk 0:00:27.7]} 30. h4 {[%clk
0:01:02.2]} 30... Rd7 {[%clk 0:00:26.6]} 31. Ra8+ {[%clk 0:00:46]} 31... Qxa8
{[%clk 0:00:18.8]} 32. Qxd7 {[%clk 0:00:45.9]} 32... Qf3 {[%clk 0:00:19.5]} 33.
Kg1 {[%clk 0:00:44.7]} 33... Kh7 {[%clk 0:00:18]} 34. Qxb5 {[%clk 0:00:37.7]}
34... f6 {[%clk 0:00:15.5]} 35. Qc4 {[%clk 0:00:37.1]} 35... Qd1+ {[%clk
0:00:14.5]} 36. Kg2 {[%clk 0:00:36.9]} 36... f5 {[%clk 0:00:14.7]} 37. Qd5
{[%clk 0:00:32.7]} 37... Qe2 {[%clk 0:00:12.1]} 38. b5 {[%clk 0:00:30.9]} 38...
e4 {[%clk 0:00:12.3]} 39. Qxf5+ {[%clk 0:00:29.7]} 39... Kg8 {[%clk 0:00:09.1]}
40. Qe6+ {[%clk 0:00:29.5]} 40... Kh8 {[%clk 0:00:08.6]} 41. Qe8+ {[%clk
0:00:29.5]} 41... Kh7 {[%clk 0:00:08.3]} 42. Qxe4+ {[%clk 0:00:30.4]} 1-0

[Event "Late-Titled-Tuesday-Blitz-May-14-2024"]
[Site "Chess.com"]
[Date "2024.05.14"]
[Round "5"]
[White "NCchamp"]
[Black "zverr1"]
[Result "1-0"]
[WhiteElo "2317"]
[BlackElo "2459"]
[TimeControl "180+1"]
[EndTime "14:55:36 PDT"]
[Termination "NCchamp won by resignation"]

1. d4 {[%clk 0:03:00]} 1... Nf6 {[%clk 0:03:00]} 2. Bg5 {[%clk 0:02:57.4]} 2...
d5 {[%clk 0:02:59.4]} 3. e3 {[%clk 0:02:57.1]} 3... c5 {[%clk 0:02:59]} 4. Nd2
{[%clk 0:02:50.7]} 4... Nc6 {[%clk 0:02:51.7]} 5. c3 {[%clk 0:02:50.6]} 5... e6
{[%clk 0:02:49.9]} 6. Bd3 {[%clk 0:02:48]} 6... e5 {[%clk 0:02:34]} 7. Bb5
{[%clk 0:02:30.5]} 7... Qc7 {[%clk 0:02:02.6]} 8. dxe5 {[%clk 0:02:23.2]} 8...
Qxe5 {[%clk 0:01:58.8]} 9. Ngf3 {[%clk 0:02:22.3]} 9... Qf5 {[%clk 0:01:49.9]}
10. O-O {[%clk 0:02:13]} 10... Be7 {[%clk 0:01:42.9]} 11. Re1 {[%clk 0:02:09]}
11... O-O {[%clk 0:01:40.2]} 12. Qa4 {[%clk 0:01:45.4]} 12... Bd7 {[%clk
0:01:27.4]} 13. Qd1 {[%clk 0:01:35.4]} 13... a6 {[%clk 0:01:24.1]} 14. Be2
{[%clk 0:01:35.2]} 14... h6 {[%clk 0:01:18]} 15. Bh4 {[%clk 0:01:33.7]} 15...
Rfe8 {[%clk 0:01:17.6]} 16. Nb3 {[%clk 0:01:33.9]} 16... Bd6 {[%clk 0:01:12]}
17. Bd3 {[%clk 0:01:28.2]} 17... Ne4 {[%clk 0:01:11.6]} 18. Nbd2 {[%clk
0:01:12.4]} 18... Re6 {[%clk 0:01:03.8]} 19. c4 {[%clk 0:01:02.1]} 19... Rae8
{[%clk 0:00:15.1]} 20. cxd5 {[%clk 0:00:55.8]} 20... Qxd5 {[%clk 0:00:16]} 21.
Nxe4 {[%clk 0:00:52.6]} 21... Bb8 {[%clk 0:00:11]} 22. Nf6+ {[%clk 0:00:48.7]}
22... gxf6 {[%clk 0:00:09.7]} 23. Bh7+ {[%clk 0:00:49.2]} 23... Kxh7 {[%clk
0:00:10.3]} 24. Qxd5 {[%clk 0:00:50]} 24... Rd6 {[%clk 0:00:11]} 25. Qh5 {[%clk
0:00:48.3]} 25... Re7 {[%clk 0:00:10.6]} 26. Rad1 {[%clk 0:00:43.4]} 26... Ne5
{[%clk 0:00:11.1]} 27. Nxe5 {[%clk 0:00:37.1]} 27... Rxe5 {[%clk 0:00:10.4]} 28.
Qf3 {[%clk 0:00:33.7]} 28... Rf5 {[%clk 0:00:08]} 29. Qe2 {[%clk 0:00:28.4]}
29... Bb5 {[%clk 0:00:06.9]} 30. Qc2 {[%clk 0:00:26.5]} 30... Rd5 {[%clk
0:00:04.3]} 31. Rxd5 {[%clk 0:00:23.8]} 31... Kg7 {[%clk 0:00:03.4]} 32. Qxf5
{[%clk 0:00:23.5]} 1-0

[Event "Late-Titled-Tuesday-Blitz-May-14-2024"]
[Site "Chess.com"]
[Date "2024.05.14"]
[Round "5"]
[White "VictorFcQNK"]
[Black "Kozok"]
[Result "1-0"]
[WhiteElo "2140"]
[BlackElo "2348"]
[TimeControl "180+1"]
[EndTime "14:55:37 PDT"]
[Termination "VictorFcQNK won on time"]

1. d4 {[%clk 0:03:00.9]} 1... Nf6 {[%clk 0:02:54.7]} 2. Nf3 {[%clk 0:03:00.9]}
2... e6 {[%clk 0:02:54.8]} 3. e3 {[%clk 0:03:00.2]} 3... c5 {[%clk 0:02:54.8]}
4. Bd3 {[%clk 0:02:57.4]} 4... d5 {[%clk 0:02:50]} 5. c3 {[%clk 0:02:56.6]} 5...
Nc6 {[%clk 0:02:48.9]} 6. Nbd2 {[%clk 0:02:56.5]} 6... Bd6 {[%clk 0:02:44.4]} 7.
Qe2 {[%clk 0:02:54.9]} 7... Qc7 {[%clk 0:02:36.3]} 8. O-O {[%clk 0:02:53.9]}
8... Bd7 {[%clk 0:02:33.6]} 9. dxc5 {[%clk 0:02:52.1]} 9... Bxc5 {[%clk
0:02:33.3]} 10. e4 {[%clk 0:02:52.3]} 10... O-O-O {[%clk 0:02:33.3]} 11. b4
{[%clk 0:02:43.7]} 11... Bb6 {[%clk 0:02:28.7]} 12. a4 {[%clk 0:02:43.9]} 12...
dxe4 {[%clk 0:02:23.2]} 13. Nxe4 {[%clk 0:02:40.4]} 13... Nxe4 {[%clk
0:02:09.2]} 14. Bxe4 {[%clk 0:02:34.9]} 14... Qd6 {[%clk 0:02:07.3]} 15. Rd1
{[%clk 0:02:22]} 15... Qe7 {[%clk 0:02:04.5]} 16. a5 {[%clk 0:02:05.3]} 16...
Bc7 {[%clk 0:02:03.1]} 17. Be3 {[%clk 0:01:45.2]} 17... Kb8 {[%clk 0:01:57.2]}
18. Bc5 {[%clk 0:01:28.3]} 18... Qf6 {[%clk 0:01:52.4]} 19. Qc4 {[%clk
0:01:15.4]} 19... g5 {[%clk 0:01:14.7]} 20. a6 {[%clk 0:00:47]} 20... g4 {[%clk
0:00:53.8]} 21. axb7 {[%clk 0:00:30.1]} 21... gxf3 {[%clk 0:00:36.9]} 22. Bxc6
{[%clk 0:00:26.9]} 22... Bxh2+ {[%clk 0:00:04.1]} 23. Kxh2 {[%clk 0:00:17.2]}
23... Qe5+ {[%clk 0:00:04]} 24. g3 {[%clk 0:00:14.2]} 24... Bxc6 {[%clk
0:00:02.6]} 25. Bxa7+ {[%clk 0:00:12.2]} 25... Kc7 {[%clk 0:00:02.2]} 26. Bb6+
{[%clk 0:00:09.4]} 26... Kxb6 {[%clk 0:00:01.9]} 27. Ra6+ {[%clk 0:00:07.8]}
27... Kxb7 {[%clk 0:00:02.2]} 28. Qxc6+ {[%clk 0:00:07.6]} 28... Kb8 {[%clk
0:00:02.9]} 29. Rb6+ {[%clk 0:00:07.5]} 1-0

[Event "Late-Titled-Tuesday-Blitz-May-14-2024"]
[Site "Chess.com"]
[Date "2024.05.14"]
[Round "5"]
[White "Redzishchess"]
[Black "MarceloPlaya"]
[Result "1-0"]
[WhiteElo "2495"]
[BlackElo "2323"]
[TimeControl "180+1"]
[EndTime "14:55:43 PDT"]
[Termination "Redzishchess won on time"]

1. d4 {[%clk 0:02:54.8]} 1... e6 {[%clk 0:02:59.9]} 2. c4 {[%clk 0:02:54.6]}
2... Nf6 {[%clk 0:02:59.3]} 3. g3 {[%clk 0:02:54.5]} 3... Bb4+ {[%clk
0:02:58.8]} 4. Nd2 {[%clk 0:02:53.8]} 4... O-O {[%clk 0:02:57.9]} 5. Nf3 {[%clk
0:02:54.2]} 5... d5 {[%clk 0:02:57.8]} 6. Qc2 {[%clk 0:02:53.3]} 6... Qe7 {[%clk
0:02:56]} 7. Bg2 {[%clk 0:02:53.5]} 7... Rd8 {[%clk 0:02:53.5]} 8. O-O {[%clk
0:02:53.7]} 8... c6 {[%clk 0:02:49.3]} 9. e4 {[%clk 0:02:51.2]} 9... dxe4 {[%clk
0:02:43.9]} 10. Nxe4 {[%clk 0:02:51.2]} 10... Nxe4 {[%clk 0:02:43.3]} 11. Qxe4
{[%clk 0:02:52.1]} 11... Nd7 {[%clk 0:02:42.4]} 12. Bf4 {[%clk 0:02:34]} 12...
Nf6 {[%clk 0:02:35.5]} 13. Qe2 {[%clk 0:02:32.5]} 13... Bd6 {[%clk 0:02:20.1]}
14. Ne5 {[%clk 0:02:30.2]} 14... Bxe5 {[%clk 0:02:14.2]} 15. dxe5 {[%clk
0:02:26.5]} 15... Ne8 {[%clk 0:02:09.9]} 16. Rfd1 {[%clk 0:02:22]} 16... Bd7
{[%clk 0:02:00.4]} 17. h4 {[%clk 0:02:15.7]} 17... h6 {[%clk 0:01:50.1]} 18. Be4
{[%clk 0:01:58.7]} 18... f5 {[%clk 0:01:26.5]} 19. exf6 {[%clk 0:01:54.6]} 19...
Nxf6 {[%clk 0:01:25.9]} 20. Bc7 {[%clk 0:01:28.6]} 20... Rdc8 {[%clk 0:01:15.7]}
21. Bd6 {[%clk 0:01:28.8]} 21... Qf7 {[%clk 0:01:14.5]} 22. Bc2 {[%clk
0:01:26.4]} 22... Re8 {[%clk 0:00:59.6]} 23. Be5 {[%clk 0:01:23]} 23... Rad8
{[%clk 0:00:55.2]} 24. Rd2 {[%clk 0:00:54.3]} 24... Bc8 {[%clk 0:00:52.7]} 25.
Rad1 {[%clk 0:00:53.8]} 25... Rd7 {[%clk 0:00:39.8]} 26. Rxd7 {[%clk 0:00:46.2]}
26... Nxd7 {[%clk 0:00:38.4]} 27. Qe4 {[%clk 0:00:20.5]} 27... Nf8 {[%clk
0:00:36.4]} 28. Rd3 {[%clk 0:00:17]} 28... Qe7 {[%clk 0:00:35.4]} 29. Bd6 {[%clk
0:00:16.6]} 29... Qf7 {[%clk 0:00:16.3]} 30. Rf3 {[%clk 0:00:16]} 30... Qd7
{[%clk 0:00:07]} 31. Bxf8 {[%clk 0:00:12.6]} 1-0

[Event "Late-Titled-Tuesday-Blitz-May-14-2024"]
[Site "Chess.com"]
[Date "2024.05.14"]
[Round "5"]
[White "giovannibrandao7"]
[Black "Licancabur"]
[Result "0-1"]
[WhiteElo "2318"]
[BlackElo "2492"]
[TimeControl "180+1"]
[EndTime "14:55:44 PDT"]
[Termination "Licancabur won by resignation"]

1. e4 {[%clk 0:03:00.9]} 1... Nf6 {[%clk 0:02:59.2]} 2. e5 {[%clk 0:03:00.4]}
2... Nd5 {[%clk 0:02:59.7]} 3. d4 {[%clk 0:03:00.3]} 3... d6 {[%clk 0:02:58.8]}
4. Nf3 {[%clk 0:02:59.8]} 4... g6 {[%clk 0:02:58.1]} 5. exd6 {[%clk 0:02:52]}
5... cxd6 {[%clk 0:02:57.6]} 6. c3 {[%clk 0:02:50.9]} 6... Bg7 {[%clk
0:02:56.8]} 7. Be2 {[%clk 0:02:50.5]} 7... O-O {[%clk 0:02:57.2]} 8. O-O {[%clk
0:02:50.5]} 8... Nc6 {[%clk 0:02:57.7]} 9. Bg5 {[%clk 0:02:46]} 9... h6 {[%clk
0:02:54.2]} 10. Bh4 {[%clk 0:02:45.6]} 10... g5 {[%clk 0:02:45.3]} 11. Bg3
{[%clk 0:02:45.2]} 11... f5 {[%clk 0:02:28.6]} 12. Bc4 {[%clk 0:02:15.1]} 12...
Be6 {[%clk 0:02:27.2]} 13. b4 {[%clk 0:01:33.1]} 13... f4 {[%clk 0:02:02.4]} 14.
Qb3 {[%clk 0:01:32.6]} 14... Rf5 {[%clk 0:01:59]} 15. Nbd2 {[%clk 0:01:01.2]}
15... fxg3 {[%clk 0:01:45.6]} 16. fxg3 {[%clk 0:01:02.1]} 16... Bf7 {[%clk
0:01:22.3]} 17. g4 {[%clk 0:00:56.4]} 17... b5 {[%clk 0:01:06.2]} 18. Bxb5
{[%clk 0:00:18.2]} 18... Ne3 {[%clk 0:01:02.3]} 19. Qa4 {[%clk 0:00:17.8]} 19...
Rxb5 {[%clk 0:00:53.4]} 20. Qxb5 {[%clk 0:00:14.2]} 20... Nxf1 {[%clk
0:00:52.9]} 21. Qxc6 {[%clk 0:00:07.8]} 21... Nxd2 {[%clk 0:00:49.3]} 22. Nxd2
{[%clk 0:00:07]} 22... Rc8 {[%clk 0:00:48.3]} 23. Qf3 {[%clk 0:00:06.8]} 23...
Qc7 {[%clk 0:00:32.3]} 24. Rf1 {[%clk 0:00:06.3]} 24... Rf8 {[%clk 0:00:29.9]}
25. Qd3 {[%clk 0:00:03.7]} 25... Qd7 {[%clk 0:00:25.8]} 26. a3 {[%clk
0:00:03.7]} 26... Qxg4 {[%clk 0:00:24.7]} 27. Rf3 {[%clk 0:00:02.4]} 27... Qe6
{[%clk 0:00:21.9]} 28. h3 {[%clk 0:00:01.9]} 28... Bg6 {[%clk 0:00:19.1]} 29.
Qf1 {[%clk 0:00:00.8]} 29... Rxf3 {[%clk 0:00:16.6]} 30. Nxf3 {[%clk 0:00:01.7]}
30... Qe3+ {[%clk 0:00:15.1]} 31. Kh2 {[%clk 0:00:01.6]} 31... Qxc3 {[%clk
0:00:14.8]} 32. Qa6 {[%clk 0:00:02.2]} 32... Qc7 {[%clk 0:00:13.9]} 33. Qd3
{[%clk 0:00:01.6]} 33... Bxd3 {[%clk 0:00:13]} 0-1

[Event "Late-Titled-Tuesday-Blitz-May-14-2024"]
[Site "Chess.com"]
[Date "2024.05.14"]
[Round "5"]
[White "PenguinPacks"]
[Black "aceontheturn"]
[Result "1-0"]
[WhiteElo "2539"]
[BlackElo "2798"]
[TimeControl "180+1"]
[EndTime "14:55:45 PDT"]
[Termination "PenguinPacks won by resignation"]

1. e4 {[%clk 0:03:00.9]} 1... e5 {[%clk 0:02:57.1]} 2. Nf3 {[%clk 0:03:01.5]}
2... Nc6 {[%clk 0:02:57.7]} 3. Bb5 {[%clk 0:03:01.3]} 3... a6 {[%clk 0:02:57.9]}
4. Ba4 {[%clk 0:03:01.2]} 4... d6 {[%clk 0:02:58.6]} 5. d4 {[%clk 0:02:59.8]}
5... Bd7 {[%clk 0:02:58.7]} 6. d5 {[%clk 0:02:59.6]} 6... Nce7 {[%clk
0:02:58.4]} 7. Bxd7+ {[%clk 0:02:58.2]} 7... Qxd7 {[%clk 0:02:59.3]} 8. c4
{[%clk 0:02:58.3]} 8... g6 {[%clk 0:02:59.3]} 9. Nc3 {[%clk 0:02:58.2]} 9... h6
{[%clk 0:02:59.5]} 10. b4 {[%clk 0:02:57.9]} 10... f5 {[%clk 0:02:59.1]} 11.
exf5 {[%clk 0:02:56]} 11... gxf5 {[%clk 0:02:58.7]} 12. a4 {[%clk 0:02:25.1]}
12... Bg7 {[%clk 0:02:57.7]} 13. O-O {[%clk 0:02:21.8]} 13... Nf6 {[%clk
0:02:51.3]} 14. a5 {[%clk 0:02:22]} 14... O-O {[%clk 0:02:51.4]} 15. Nh4 {[%clk
0:02:15.2]} 15... c6 {[%clk 0:02:45.7]} 16. Na4 {[%clk 0:02:05.6]} 16... Rad8
{[%clk 0:02:35.9]} 17. Nb6 {[%clk 0:02:05.9]} 17... Qe8 {[%clk 0:02:34.6]} 18.
dxc6 {[%clk 0:02:05.4]} 18... Nxc6 {[%clk 0:02:30.7]} 19. Nxf5 {[%clk
0:01:55.7]} 19... Qg6 {[%clk 0:02:20]} 20. Nxg7 {[%clk 0:01:51.5]} 20... Kxg7
{[%clk 0:02:20.9]} 21. Ra3 {[%clk 0:01:51.6]} 21... Ne4 {[%clk 0:02:10.5]} 22.
Rh3 {[%clk 0:01:46.6]} 22... Rh8 {[%clk 0:02:06.4]} 23. f4 {[%clk 0:01:40.8]}
23... Rdf8 {[%clk 0:01:59.4]} 24. Nd5 {[%clk 0:01:38.3]} 24... h5 {[%clk
0:01:46.8]} 25. Bb2 {[%clk 0:01:22.2]} 25... Qg4 {[%clk 0:01:24.4]} 26. Qd3
{[%clk 0:01:12.5]} 26... Qf5 {[%clk 0:01:12.1]} 27. Ne3 {[%clk 0:01:05.3]} 27...
Qh7 {[%clk 0:00:55.1]} 28. f5 {[%clk 0:00:57.4]} 28... Nf6 {[%clk 0:00:50.1]}
29. Qxd6 {[%clk 0:00:56.8]} 29... Rd8 {[%clk 0:00:49]} 30. Qc7+ {[%clk
0:00:51.3]} 30... Rd7 {[%clk 0:00:48.9]} 31. Qb6 {[%clk 0:00:51.9]} 31... Qh6
{[%clk 0:00:42.8]} 32. b5 {[%clk 0:00:47.9]} 32... Nd4 {[%clk 0:00:40.4]} 33.
Rg3+ {[%clk 0:00:43.9]} 33... Kh7 {[%clk 0:00:37.9]} 34. Bxd4 {[%clk 0:00:38.7]}
34... exd4 {[%clk 0:00:37.3]} 35. Nd1 {[%clk 0:00:20.9]} 35... Rg8 {[%clk
0:00:32.1]} 36. Rg6 {[%clk 0:00:19.8]} 36... Rxg6 {[%clk 0:00:08.8]} 37. fxg6+
{[%clk 0:00:20.7]} 37... Qxg6 {[%clk 0:00:09.7]} 38. Qxf6 {[%clk 0:00:20.9]}
38... Qxf6 {[%clk 0:00:06.6]} 39. Rxf6 {[%clk 0:00:21.8]} 39... axb5 {[%clk
0:00:07.4]} 40. cxb5 {[%clk 0:00:21.8]} 40... Rd5 {[%clk 0:00:08.3]} 41. Rb6
{[%clk 0:00:20.9]} 41... Re5 {[%clk 0:00:08.2]} 42. Kf2 {[%clk 0:00:20.3]} 1-0

[Event "Late-Titled-Tuesday-Blitz-May-14-2024"]
[Site "Chess.com"]
[Date "2024.05.14"]
[Round "5"]
[White "CarlosjPineror"]
[Black "DeArron_Fox"]
[Result "1-0"]
[WhiteElo "2743"]
[BlackElo "2560"]
[TimeControl "180+1"]
[EndTime "14:55:47 PDT"]
[Termination "CarlosjPineror won on time"]

1. e4 {[%clk 0:03:00.9]} 1... c5 {[%clk 0:02:49.5]} 2. Nf3 {[%clk 0:03:00.6]}
2... e6 {[%clk 0:02:36.2]} 3. g3 {[%clk 0:02:54.3]} 3... d5 {[%clk 0:02:26.5]}
4. exd5 {[%clk 0:02:52.9]} 4... exd5 {[%clk 0:02:27.4]} 5. Bb5+ {[%clk
0:02:50.6]} 5... Bd7 {[%clk 0:02:12.2]} 6. Qe2+ {[%clk 0:02:50.4]} 6... Be7
{[%clk 0:02:08.5]} 7. Nc3 {[%clk 0:02:49]} 7... Nf6 {[%clk 0:02:06.8]} 8. d4
{[%clk 0:02:48.6]} 8... O-O {[%clk 0:02:02.3]} 9. Bxd7 {[%clk 0:02:41.8]} 9...
Qxd7 {[%clk 0:01:46.6]} 10. O-O {[%clk 0:02:41.9]} 10... Nc6 {[%clk 0:01:44.3]}
11. Ne5 {[%clk 0:02:36.7]} 11... Nxd4 {[%clk 0:01:38.2]} 12. Nxd7 {[%clk
0:02:25]} 12... Nxe2+ {[%clk 0:01:38.1]} 13. Nxe2 {[%clk 0:02:25.2]} 13... Nxd7
{[%clk 0:01:39]} 14. Nc3 {[%clk 0:02:19.5]} 14... Nb6 {[%clk 0:01:19.4]} 15. Re1
{[%clk 0:02:16.8]} 15... Bf6 {[%clk 0:01:18.8]} 16. Bf4 {[%clk 0:02:14.9]} 16...
Rfe8 {[%clk 0:01:08.4]} 17. Rad1 {[%clk 0:02:08.6]} 17... Bxc3 {[%clk
0:00:42.7]} 18. bxc3 {[%clk 0:02:05.5]} 18... f6 {[%clk 0:00:40.8]} 19. Rxe8+
{[%clk 0:01:58.3]} 19... Rxe8 {[%clk 0:00:41.7]} 20. Bc7 {[%clk 0:01:58.5]}
20... Na4 {[%clk 0:00:12]} 21. Rxd5 {[%clk 0:01:53.9]} 21... b6 {[%clk
0:00:09.3]} 22. c4 {[%clk 0:01:54.5]} 22... Nc3 {[%clk 0:00:06.7]} 23. Rd3
{[%clk 0:01:50.9]} 23... Nxa2 {[%clk 0:00:04.5]} 24. Ra3 {[%clk 0:01:43.2]}
24... Nb4 {[%clk 0:00:04.6]} 25. Rxa7 {[%clk 0:01:40.5]} 25... Re2 {[%clk
0:00:04.6]} 26. Bxb6 {[%clk 0:01:35.4]} 26... Rxc2 {[%clk 0:00:04.3]} 27. Ra8+
{[%clk 0:01:20.7]} 27... Kf7 {[%clk 0:00:04.3]} 28. Ra7+ {[%clk 0:01:21.3]}
28... Kg6 {[%clk 0:00:04.4]} 29. Bxc5 {[%clk 0:01:19.5]} 29... Nd3 {[%clk
0:00:03.7]} 30. Bf8 {[%clk 0:01:16.8]} 30... Nxf2 {[%clk 0:00:02.7]} 31. Rxg7+
{[%clk 0:01:08.6]} 31... Kf5 {[%clk 0:00:03]} 32. Rxh7 {[%clk 0:01:06.5]} 32...
Ng4 {[%clk 0:00:02.6]} 33. h3 {[%clk 0:01:04]} 33... Rc1+ {[%clk 0:00:01.8]} 34.
Kg2 {[%clk 0:00:59.2]} 34... Ne3+ {[%clk 0:00:02.7]} 35. Kf3 {[%clk 0:00:58.1]}
35... Nxc4 {[%clk 0:00:03.6]} 36. g4+ {[%clk 0:00:52.3]} 36... Kg6 {[%clk
0:00:03.1]} 37. Rg7+ {[%clk 0:00:50.2]} 37... Kh6 {[%clk 0:00:03.4]} 38. Kg3
{[%clk 0:00:47.7]} 38... Rc3+ {[%clk 0:00:02]} 39. Kh4 {[%clk 0:00:47.3]} 39...
Rc2 {[%clk 0:00:01.1]} 40. Rg5+ {[%clk 0:00:24.6]} 40... Kh7 {[%clk 0:00:00.8]}
41. Rf5 {[%clk 0:00:24.9]} 1-0